bitfinex/quotes_ETHUSD_20251011
["timestamp","ask_amount","ask_price","bid_price","bid_amount"]
[1760156625786,5.21330571,3825.4,3825.3,1e-08]
[1760156626400,4.53465251,3824.6,3822.1,0.4625]
[1760156626697,4.53465251,3824.6,3822.4,0.2881]
[1760156626923,3.08425251,3824.6,3822.1,2.79074029]
[1760156627070,2.61540246,3823.6,3822.1,0.1744]
[1760156627270,2.83381379,3823.5,3822.2,2.61629428]
[1760156627474,2.83381379,3823.5,3822.1,0.1744]
[1760156627475,2.83381379,3823.5,3822.3,2.61621695]
[1760156627798,0.2184,3823.5,3822.4,2.61614237]
[1760156627982,0.2184,3823.5,3822.4,2.61609239]
[1760156628166,0.4696,3823.6,3822.2,0.2901]
[1760156628366,0.4696,3823.6,3822.3,0.6336]
[1760156628584,3.08494424,3823.6,3822.5,0.6336]
[1760156628792,3.08494424,3823.6,3822.5,3.24968801]
[1760156628793,0.4696,3823.6,3822.5,3.24968801]
[1760156628989,3.08493903,3823.6,3822.5,3.24968801]
[1760156629177,3.08493903,3823.6,3822.5,0.6336]
[1760156629383,2.61541267,3823.5,3822.5,0.6336]
[1760156629582,2.61549815,3823.4,3822.3,0.6336]
[1760156629782,0.4696,3823.6,3822.6,0.6336]
[1760156629980,0.4696,3823.6,3822.3,0.6336]
[1760156630179,3.08493768,3823.6,3822.3,0.6336]
[1760156630378,3.08494188,3823.6,3822.5,0.6336]
[1760156630594,3.08494175,3823.6,3822.6,0.6336]
[1760156630801,0.4696,3823.6,3822.6,3.24962042]
[1760156630972,0.4696,3823.6,3822.6,0.6336]
[1760156631302,0.4696,3823.6,3822.5,0.6336]
[1760156631501,0.4696,3823.6,3822.5,3.24962194]
[1760156631874,0.4696,3823.6,3822.1,0.4665]
[1760156631875,0.4696,3823.6,3822.4,2.61612683]
[1760156632091,0.4696,3823.6,3822.5,0.6336]
[1760156632295,0.4696,3823.6,3822.6,2.61596293]
[1760156632806,0.4696,3823.6,3822.8,0.6336]
[1760156633471,1.92,3823.6,3822.7,0.78750182]
[1760156633804,2.61606771,3822.6,3822.1,0.002]
[1760156634179,0.4692,3822.5,3822.1,0.002]
[1760156634684,0.4692,3822.4,3822.1,0.002]
[1760156635204,2.61598279,3822.7,3822.1,0.002]
[1760156635205,0.4692,3822.3,3822.1,0.002]
[1760156635411,2.61629428,3822.2,3822.1,0.002]
[1760156635773,3.08549428,3822.2,3822.1,0.002]
[1760156636281,0.4692,3822.2,3822.1,0.002]
[1760156636479,3.08549428,3822.2,3822.1,0.002]
[1760156637014,0.4692,3822.2,3822.1,0.002]
[1760156637502,3.08549428,3822.2,3822.1,0.002]
[1760156638697,0.4692,3822.2,3822.1,0.002]
[1760156638890,3.08549428,3822.2,3822.1,0.002]
[1760156639094,0.4692,3822.2,3822.1,0.002]
[1760156639308,2.61579844,3823.0,3822.1,0.002]
[1760156639309,0.4692,3822.8,3822.1,0.002]
[1760156639507,2.61596194,3822.7,3822.1,0.002]
[1760156639705,2.6160384,3822.6,3822.1,0.002]
[1760156639886,1.92,3823.3,3822.1,0.002]
[1760156640091,0.62867891,3823.8,3822.1,0.1804]
[1760156640092,0.4692,3823.1,3822.1,0.1804]
[1760156640410,3.08446835,3823.7,3822.8,0.6336]
[1760156640794,3.08446835,3823.7,3822.4,0.6336]
[1760156640795,2.61534673,3823.6,3822.4,0.6336]
[1760156640994,3.08453025,3823.7,3822.3,0.6336]
[1760156641196,0.4692,3823.7,3822.6,0.6336]
[1760156641391,0.4692,3823.6,3822.1,0.002]
[1760156641712,2.61566083,3823.2,3822.2,0.6336]
[1760156641944,0.4692,3823.1,3822.2,0.6336]
[1760156642110,2.61546182,3823.5,3822.2,0.6336]
[1760156642111,3.08462552,3823.5,3822.2,0.6336]
[1760156642305,0.4692,3823.5,3822.2,0.6336]
[1760156642499,3.0846742,3823.4,3822.1,0.6356]
[1760156642684,2.61566526,3823.2,3822.1,2.5556]
[1760156642880,2.61566526,3823.2,3822.3,0.6336]
[1760156643108,2.61568453,3823.1,3822.1,2.5556]
[1760156643314,3.08499061,3823.0,3822.1,0.6356]
[1760156643717,2.61526793,3823.7,3822.1,0.002]
[1760156643905,2.61607448,3822.6,3822.1,0.002]
[1760156644225,2.6159618,3822.7,3822.1,0.002]
[1760156644386,0.4692,3822.5,3822.1,0.002]
[1760156644920,0.4692,3822.4,3822.1,0.002]
[1760156645113,2.61629428,3822.2,3822.1,0.002]
[1760156645495,3.08549428,3822.2,3822.1,0.002]
[1760156647304,0.4692,3822.2,3822.1,0.002]
[1760156647628,3.08549428,3822.2,3822.1,0.002]
[1760156648123,0.4692,3822.2,3822.1,0.002]
[1760156648310,2.61617072,3822.4,3822.1,0.002]
[1760156648511,2.61603628,3822.6,3822.1,0.002]
[1760156648707,0.4692,3822.3,3822.1,0.002]
[1760156649111,0.4692,3822.8,3822.1,0.002]
[1760156649288,2.61595835,3822.7,3822.1,0.002]
[1760156649623,2.61595804,3822.7,3822.1,0.002]
[1760156649813,0.4692,3822.6,3822.1,0.002]
[1760156650621,0.2184,3823.8,3822.1,0.002]
[1760156650799,0.4692,3823.0,3822.2,0.6336]
[1760156650999,3.08500299,3823.0,3822.2,0.6336]
[1760156651326,2.61581949,3822.9,3822.1,0.002]
[1760156652022,0.4692,3823.0,3822.1,0.002]
[1760156652204,2.61527268,3823.7,3822.1,0.002]
[1760156652205,2.61614093,3822.5,3822.1,0.002]
[1760156652927,3.08535996,3822.4,3822.1,0.002]
[1760156653124,0.4692,3822.9,3822.1,0.002]
[1760156653328,0.4692,3822.9,3822.1,0.814]
[1760156653517,2.61576074,3823.0,3822.1,0.814]
[1760156653697,0.4692,3823.2,3822.1,0.814]
[1760156653898,2.61570046,3823.1,3822.1,0.814]
[1760156654200,2.61567837,3823.1,3822.1,0.1804]
[1760156654401,0.4692,3823.2,3822.1,0.1804]
[1760156654600,0.4692,3823.2,3822.1,2.79676126]
[1760156654803,0.4692,3823.7,3822.4,0.6336]
[1760156655096,0.2238,3824.1,3823.1,0.6336]
[1760156655307,2.6150678,3824.0,3822.6,3.2496205]
[1760156655603,0.2238,3824.1,3822.8,0.6336]
[1760156655604,0.4288,3823.9,3822.8,0.6336]
[1760156655803,3.04394915,3823.9,3822.8,0.6336]
[1760156656004,2.61521637,3823.8,3822.8,3.24946568]
[1760156656331,3.04394674,3823.9,3823.0,0.6336]
[1760156657037,3.04394674,3823.9,3822.9,0.6336]
[1760156657232,3.04394674,3823.9,3822.8,0.6336]
[1760156657233,2.61520573,3823.8,3822.8,0.6336]
[1760156657533,3.04394853,3823.9,3822.8,0.6336]
[1760156657919,0.4288,3823.9,3823.0,2.61574105]
[1760156658122,3.04360036,3824.4,3823.1,3.24927794]
[1760156658435,0.4288,3824.4,3822.9,0.6336]
[1760156658631,0.4288,3824.4,3823.4,0.6336]
[1760156658801,0.4288,3824.3,3822.7,1.92]
[1760156659005,2.61542308,3823.5,3822.6,0.6336]
[1760156659226,3.04427372,3823.4,3822.6,0.6336]
[1760156659426,0.4288,3823.4,3822.6,0.6336]
[1760156659730,2.85168567,3824.6,3822.1,0.002]
[1760156659731,0.4288,3823.3,3822.1,0.002]
[1760156659930,3.04434283,3823.3,3822.4,2.5536]
[1760156660120,2.61559266,3823.3,3822.1,0.96797211]
[1760156660326,3.04439266,3823.3,3822.2,0.6336]
[1760156660708,0.4288,3823.3,3822.5,0.6336]
[1760156661034,0.4288,3823.3,3822.5,3.24968821]
[1760156661238,2.61485762,3824.3,3822.7,0.6336]
[1760156661239,0.4288,3823.6,3822.7,0.6336]
[1760156661438,2.61541588,3823.5,3822.7,0.6336]
[1760156661623,0.4288,3823.6,3822.7,0.6336]
[1760156661941,0.4288,3823.5,3822.1,1.922]
[1760156662121,2.61588977,3822.8,3822.2,0.6336]
[1760156662439,2.61588977,3822.8,3822.1,1.922]
[1760156662440,3.04476161,3822.7,3822.1,0.002]
[1760156662737,0.4288,3822.7,3822.1,0.002]
[1760156662934,2.61617745,3822.4,3822.1,0.002]
[1760156663307,2.61629428,3822.2,3822.1,0.002]
[1760156663738,3.04509428,3822.2,3822.1,0.002]
[1760156665344,4.96509428,3822.2,3822.1,0.002]
[1760156665641,5.37543326,3822.2,3822.1,0.002]
[1760156669262,4.96509428,3822.2,3822.1,0.002]
[1760156669948,3.04509428,3822.2,3822.1,0.002]
[1760156675747,4.96509428,3822.2,3822.1,0.002]
[1760156682170,3.04509428,3822.2,3822.1,0.002]
[1760156682984,0.4288,3822.2,3822.1,0.002]
[1760156683294,0.4288,3822.7,3822.1,0.002]
[1760156683502,0.41035652,3823.1,3822.2,0.6336]
[1760156683702,3.04421177,3823.5,3822.4,0.6336]
[1760156683884,0.41027321,3824.2,3822.4,0.6336]
[1760156684195,0.4288,3823.9,3822.4,3.24975167]
[1760156684357,0.4288,3823.9,3822.6,0.6336]
[1760156684557,2.61528748,3823.7,3822.6,0.6336]
[1760156684780,0.4288,3823.9,3822.6,0.6336]
[1760156684985,2.61532603,3823.7,3822.6,0.6336]
[1760156685189,2.6154106,3823.5,3822.6,0.6336]
[1760156685364,2.61554279,3823.3,3822.5,0.6336]
[1760156686501,2.61504764,3824.1,3822.1,2.79675914]
[1760156686502,0.4524,3823.2,3822.4,0.6336]
[1760156686721,0.4524,3823.2,3822.3,0.6336]
[1760156687298,1.92,3824.3,3822.1,0.002]
[1760156687502,2.61614661,3822.5,3822.1,0.002]
[1760156687700,0.4524,3823.1,3822.1,0.002]
[1760156687903,2.61613784,3822.5,3822.1,0.002]
[1760156688107,2.61617979,3822.4,3822.1,0.002]
[1760156688809,0.4524,3822.8,3822.1,0.002]
[1760156688999,2.61595207,3822.7,3822.1,0.002]
[1760156690917,2.61576734,3823.0,3822.1,0.002]
[1760156690918,2.6158063,3823.0,3822.3,0.6336]
[1760156691105,2.6158433,3822.9,3822.3,0.6336]
[1760156691311,2.61560996,3823.2,3822.3,0.6336]
[1760156691634,2.61560996,3823.2,3822.1,0.002]
[1760156691816,0.4285,3823.3,3822.1,0.1804]
[1760156691987,2.61580399,3823.0,3822.1,0.1804]
[1760156692191,0.4285,3823.3,3822.1,0.1804]
[1760156692592,2.61549223,3823.4,3822.2,0.6336]
[1760156692806,0.4285,3823.6,3822.2,0.6336]
[1760156693089,2.61566675,3823.2,3822.2,0.6336]
[1760156693290,2.61562793,3823.2,3822.2,0.6336]
[1760156693492,0.41024178,3823.7,3822.2,0.6336]
[1760156693691,0.41024178,3823.7,3822.1,0.002]
[1760156693692,2.61547313,3823.4,3822.1,0.002]
[1760156693923,2.61629428,3822.2,3822.1,0.002]
[1760156694411,3.04479428,3822.2,3822.1,0.002]
[1760156695808,4.96479428,3822.2,3822.1,0.002]
[1760156696917,2.6165681,3821.8,3821.7,1e-08]
[1760156697121,2.61684199,3821.4,3821.3,0.002]
[1760156697297,4.53684199,3821.4,3821.3,0.002]
[1760156697497,4.96534199,3821.4,3821.3,0.002]
[1760156697737,2.61732143,3820.7,3818.9,0.002]
[1760156698093,3.04582143,3820.7,3818.9,0.002]
[1760156698315,4.96582143,3820.7,3818.9,0.002]
[1760156698648,5.37635034,3820.7,3818.9,0.002]
[1760156698858,4.53759547,3820.3,3820.2,1e-08]
[1760156699209,4.96609547,3820.3,3820.2,1e-08]
[1760156699409,3.04609547,3820.3,3820.2,1e-08]
[1760156702241,2.3485,3820.7,3820.2,1e-08]
[1760156702443,0.4285,3820.7,3820.2,1e-08]
[1760156702611,2.61751328,3820.5,3820.2,1e-08]
[1760156702813,0.4285,3821.0,3820.2,1e-08]
[1760156703035,0.4285,3821.5,3820.4,0.6336]
[1760156703343,2.61329467,3826.6,3820.4,0.6336]
[1760156703344,0.41043351,3822.1,3820.6,0.6336]
[1760156703637,0.41043351,3822.1,3820.2,1e-08]
[1760156703638,2.61588734,3822.8,3821.0,0.6336]
[1760156703841,0.6449,3823.1,3821.2,0.6336]
[1760156704022,0.6449,3823.1,3821.7,2.5536]
[1760156704023,2.61593717,3822.8,3821.7,2.5536]
[1760156704342,0.4285,3823.0,3821.6,0.2901]
[1760156704517,0.41029689,3823.6,3822.3,2.61616266]
[1760156704518,2.61536773,3823.6,3822.3,2.61616266]
[1760156704718,2.61536773,3823.6,3822.4,0.812]
[1760156704926,2.6152843,3823.7,3822.5,0.6336]
[1760156705126,2.61540881,3823.5,3822.5,3.24968683]
[1760156705331,0.4285,3823.7,3822.5,0.6336]
[1760156705536,2.61562579,3823.2,3822.3,0.6336]
[1760156705845,2.61562579,3823.2,3821.7,0.2901]
[1760156705846,0.4285,3823.1,3821.7,0.6336]
[1760156706042,2.61601275,3822.7,3821.7,0.6336]
[1760156706215,2.61588364,3822.8,3821.7,0.6336]
[1760156706420,0.4285,3822.7,3821.4,0.6336]
[1760156706613,0.4285,3822.7,3821.7,0.6336]
[1760156706816,2.61623518,3822.3,3821.7,0.6336]
[1760156707026,2.61629773,3822.2,3821.4,0.6336]
[1760156707519,2.61642077,3822.1,3820.7,2.79568724]
[1760156707848,0.4285,3822.9,3821.1,0.6336]
[1760156708030,0.4285,3822.9,3821.2,2.8437]
[1760156708346,0.4285,3822.9,3821.2,0.9237]
[1760156708525,2.61603491,3822.6,3821.6,0.6336]
[1760156708836,2.61596929,3822.7,3821.3,0.6336]
[1760156709040,0.4285,3822.8,3821.3,0.6336]
[1760156709250,0.4285,3822.7,3820.2,2.61765426]
[1760156709579,0.4285,3822.6,3820.3,2.61755695]
[1760156709754,1.92,3823.2,3820.2,1e-08]
[1760156709755,0.4285,3822.5,3820.2,1e-08]
[1760156709938,2.61677752,3821.5,3820.3,0.6336]
[1760156710243,2.61677752,3821.5,3820.2,2.61765009]
[1760156710244,2.61684446,3821.4,3820.2,1e-08]
[1760156710613,0.4285,3821.8,3820.4,2.5536]
[1760156710614,2.61691494,3821.3,3820.4,2.5536]
[1760156710824,0.4285,3821.8,3820.3,2.61759547]
[1760156710825,3.0451131,3821.8,3820.6,1.92]
[1760156711248,2.61663657,3821.7,3820.7,0.6336]
[1760156711450,0.4285,3821.8,3821.0,0.6336]
[1760156711629,2.61636273,3822.1,3821.0,0.6336]
[1760156711833,2.61615577,3822.5,3821.0,0.6336]
[1760156712153,3.04470636,3822.4,3820.7,1.92]
[1760156712355,0.1304,3820.5,3820.2,1e-08]
[1760156712736,2.61718371,3821.0,3820.2,1e-08]
[1760156712933,1.92,3822.0,3820.2,1e-08]
[1760156713255,3.0456104,3821.1,3820.2,1e-08]
[1760156713967,2.61712817,3821.0,3820.2,1e-08]
[1760156714477,2.61670489,3821.7,3820.2,1e-08]
[1760156714478,0.4285,3821.6,3820.2,1e-08]
[1760156714645,0.41042952,3821.8,3820.2,1e-08]
[1760156714853,2.61701877,3821.2,3820.2,0.63360001]
[1760156715142,2.61701877,3821.2,3820.2,1e-08]
[1760156715455,2.61715287,3821.0,3820.2,1e-08]
[1760156715857,2.61704297,3821.2,3820.2,0.63360001]
[1760156716436,0.4285,3821.5,3820.4,3.25112432]
[1760156716662,2.6167017,3821.7,3820.6,0.6336]
[1760156716962,2.61562073,3823.2,3820.6,0.6336]
[1760156716963,0.4745,3822.3,3820.8,0.6336]
[1760156717158,0.4745,3822.2,3820.8,0.6336]
[1760156717353,2.61670945,3821.6,3820.7,0.6336]
[1760156717756,2.61670945,3821.6,3820.8,0.6336]
[1760156718065,2.61662711,3821.8,3820.8,0.6336]
[1760156718255,2.61666668,3821.7,3820.8,0.6336]
[1760156718564,2.61666668,3821.7,3820.9,0.6336]
[1760156718863,0.4745,3822.1,3820.1,1.922]
[1760156718864,2.61718135,3821.0,3820.1,1.922]
[1760156719042,0.4745,3821.6,3820.1,0.002]
[1760156719243,0.4745,3821.3,3820.1,2.61971437]
[1760156719446,2.61697158,3821.3,3820.4,0.6336]
[1760156719863,2.61685185,3821.4,3820.5,0.6336]
[1760156720234,2.61672809,3821.6,3820.2,2.61765169]
[1760156720235,0.4745,3821.9,3820.6,0.6336]
[1760156720436,2.61690181,3821.4,3820.3,3.25113113]
[1760156720636,2.61677727,3821.5,3820.7,0.6336]
[1760156720948,0.4745,3821.9,3820.7,0.6336]
[1760156721138,0.4745,3821.9,3820.5,0.6336]
[1760156721340,2.61676451,3821.6,3820.7,0.6336]
[1760156721545,2.61665325,3821.7,3820.6,0.6336]
[1760156721747,2.61687958,3821.4,3820.6,0.6336]
[1760156722038,2.6167876,3821.5,3820.6,0.6336]
[1760156722264,2.61684425,3821.4,3820.6,0.6336]
[1760156722662,2.61691425,3821.3,3820.5,0.6336]
[1760156722862,2.616856,3821.4,3820.5,0.6336]
[1760156723239,0.4745,3821.3,3820.2,1e-08]
[1760156723459,0.1304,3820.4,3820.2,1e-08]
[1760156723972,3.09209547,3820.3,3820.2,1e-08]
[1760156726568,5.01209547,3820.3,3820.2,1e-08]
[1760156728060,5.01209547,3820.3,3819.8,1e-08]
[1760156728061,4.53786957,3819.9,3819.8,1e-08]
[1760156728257,4.76066957,3819.9,3819.8,1e-08]
[1760156728459,5.23516957,3819.9,3819.8,1e-08]
[1760156728659,5.6458191,3819.9,3819.8,1e-08]
[1760156729260,2.61869222,3818.7,3818.6,0.002]
[1760156729670,2.6187608,3818.6,3818.5,1e-08]
[1760156730045,3.0932608,3818.6,3818.5,1e-08]
[1760156730247,2.61903514,3818.2,3818.1,1e-08]
[1760156730774,3.09353514,3818.2,3818.1,1e-08]
[1760156731147,3.5044004,3818.2,3818.1,1e-08]
[1760156732451,0.4745,3818.2,3818.1,1e-08]
[1760156733784,3.09353514,3818.2,3818.1,1e-08]
[1760156734076,0.4745,3818.2,3818.1,1e-08]
[1760156734465,3.09353514,3818.2,3818.1,1e-08]
[1760156734652,0.4745,3818.2,3818.1,1e-08]
[1760156735454,0.4745,3818.7,3818.1,1e-08]
[1760156736959,3.09321697,3818.7,3818.1,1e-08]
[1760156737157,0.4745,3818.7,3818.1,1e-08]
[1760156737356,2.61895845,3818.4,3818.1,1e-08]
[1760156737563,2.61903514,3818.2,3818.1,1e-08]
[1760156737756,0.4745,3818.3,3818.1,1e-08]
[1760156738161,1.92,3819.5,3818.1,1e-08]
[1760156738361,3.09353514,3818.2,3818.1,1e-08]
[1760156740483,5.01353514,3818.2,3818.1,1e-08]
[1760156740659,5.01353514,3818.2,3817.7,0.002]
[1760156740660,4.53930955,3817.8,3817.7,1e-08]
[1760156740863,2.61917234,3818.0,3817.4,0.002]
[1760156740864,2.61951538,3817.5,3817.4,0.002]
[1760156741064,2.61978989,3817.1,3815.6,2.62078748]
[1760156741285,2.61978989,3817.1,3812.8,0.13705431]
[1760156741286,1.92,3817.1,3814.6,0.10519464]
[1760156741583,0.4745,3817.0,3815.2,2.62109151]
[1760156741753,0.4745,3817.0,3814.8,0.2981]
[1760156741957,2.62022467,3816.5,3815.3,2.62101998]
[1760156742177,2.62034894,3816.3,3815.1,2.62110616]
[1760156742385,0.4745,3816.9,3815.0,1.92]
[1760156742685,0.4745,3817.7,3816.5,0.6336]
[1760156743185,0.2228,3817.9,3817.0,1.92]
[1760156743354,0.2228,3817.9,3817.1,0.6336]
[1760156743556,0.41081552,3818.9,3816.7,0.6336]
[1760156743557,0.2228,3818.3,3816.7,0.6336]
[1760156743787,2.61910937,3818.1,3817.0,0.6336]
[1760156743987,2.61910937,3818.1,3817.0,3.25344468]
[1760156744152,2.61917872,3818.0,3817.0,3.25344468]
[1760156744355,2.61919336,3818.0,3817.0,0.6336]
[1760156744561,0.2228,3818.3,3817.0,0.6336]
[1760156744757,0.2228,3818.7,3817.2,0.6336]
[1760156744965,0.2228,3818.7,3817.4,0.6336]
[1760156744966,2.84149634,3818.7,3817.4,0.6336]
[1760156745188,0.4672,3818.6,3817.4,0.6336]
[1760156745395,3.08603782,3818.5,3816.1,2.62245792]
[1760156745686,2.6198003,3817.1,3816.1,0.002]
[1760156745892,2.3872,3818.4,3816.1,0.002]
[1760156746108,0.4672,3817.0,3816.1,0.002]
[1760156746463,3.08707453,3817.0,3816.1,0.002]
[1760156746675,2.61937041,3817.8,3816.1,0.002]
[1760156746676,0.4672,3817.5,3816.4,2.62024985]
[1760156746968,0.4672,3817.4,3816.1,0.002]
[1760156747284,2.61991226,3817.0,3816.1,0.002]
[1760156747490,3.08683552,3817.4,3816.1,0.002]
[1760156747802,0.4672,3817.4,3816.1,0.002]
[1760156747988,2.61978825,3817.2,3816.2,0.6336]
[1760156748189,2.33088818,3818.0,3816.2,0.2981]
[1760156748387,0.4672,3818.0,3816.5,0.6336]
[1760156748590,0.4672,3818.0,3816.7,0.6336]
[1760156748759,0.4672,3818.0,3817.3,0.6336]
[1760156749202,2.6189663,3818.4,3817.3,2.61965117]
[1760156749501,2.61924473,3817.9,3816.9,0.6336]
[1760156749710,4.76155561,3818.7,3816.9,0.6336]
[1760156749711,0.4672,3817.8,3816.9,0.6336]
[1760156749996,0.4533,3817.7,3816.1,0.002]
[1760156750201,2.61986869,3817.0,3816.1,0.002]
[1760156750406,2.62000297,3816.8,3816.1,0.002]
[1760156750565,2.61944677,3817.6,3816.1,0.002]
[1760156750566,0.4533,3816.9,3816.1,0.002]
[1760156750761,2.61965477,3817.3,3816.1,0.002]
[1760156750991,2.62027641,3816.4,3816.1,0.002]
[1760156751205,2.62040773,3816.2,3816.1,0.002]
[1760156751568,3.07370773,3816.2,3816.1,0.002]
[1760156755605,4.99370773,3816.2,3816.1,0.002]
[1760156755801,4.99370773,3816.2,3815.3,0.002]
[1760156755802,2.62095717,3815.4,3815.3,1e-08]
[1760156755977,4.54095717,3815.4,3815.3,1e-08]
[1760156756179,4.99425717,3815.4,3815.3,1e-08]
[1760156756691,5.62785717,3815.4,3815.3,1e-08]
[1760156757201,7.06785717,3815.4,3815.3,1e-08]
[1760156757971,5.62785717,3815.4,3815.3,1e-08]
[1760156758576,6.03911785,3815.4,3815.3,1e-08]
[1760156759291,2.5536,3815.3,3811.2,0.1137]
[1760156759603,1.92,3813.9,3811.4,1.92]
[1760156759776,0.6286,3813.7,3810.9,2.73774985]
[1760156760100,0.4533,3813.8,3808.4,2.76278555]
[1760156760300,2.62301,3812.5,3811.1,2.62388392]
[1760156760598,0.4533,3812.4,3810.3,0.3001]
[1760156760912,0.4533,3812.4,3810.1,0.1137]
[1760156761206,0.4533,3812.4,3809.3,1.09008613]
[1760156761377,0.4533,3812.3,3809.3,1.09008613]
[1760156761570,2.62322604,3812.1,3810.1,2.62460302]
[1760156761766,0.4533,3812.0,3809.3,0.3001]
[1760156761985,2.62374661,3811.4,3810.2,2.62453168]
[1760156762274,2.62374661,3811.4,3809.4,2.62508531]
[1760156762275,0.4533,3811.3,3809.4,2.62508531]
[1760156762588,0.4533,3811.3,3809.3,0.3001]
[1760156762988,0.4533,3811.3,3810.3,2.62442621]
[1760156763169,0.4533,3811.8,3809.8,0.6336]
[1760156763370,0.4533,3811.8,3810.6,0.6336]
[1760156763573,0.4533,3812.1,3810.9,2.5536]
[1760156763770,0.4533,3812.1,3810.9,0.6336]
[1760156764000,0.4533,3812.1,3811.0,0.6336]
[1760156764203,0.4533,3812.6,3811.1,2.5536]
[1760156764400,0.4533,3812.5,3811.3,0.6336]
[1760156764598,0.4533,3812.5,3811.6,2.62356916]
[1760156764798,0.4533,3812.5,3810.7,1.92]
[1760156765001,0.4533,3812.5,3811.5,2.6235992]
[1760156765303,0.4533,3812.5,3811.3,0.6336]
[1760156765605,0.4533,3812.5,3811.3,2.5536]
[1760156765901,2.62337517,3811.9,3810.7,2.62413196]
[1760156766101,0.2272,3811.8,3810.9,0.6336]
[1760156766326,0.4533,3811.7,3808.6,0.3001]
[1760156766676,0.4533,3811.7,3809.8,2.62478187]
[1760156766877,0.4533,3811.6,3808.6,0.3001]
[1760156767091,2.62395259,3811.1,3808.6,0.3001]
[1760156767312,0.2272,3811.8,3808.6,0.3001]
[1760156767313,0.4533,3811.0,3810.2,1.92]
[1760156767492,0.4533,3811.5,3810.7,2.62417067]
[1760156767687,0.4533,3811.5,3810.2,1.92]
[1760156767894,0.2272,3811.8,3811.2,2.62384231]
[1760156768101,0.4533,3812.0,3810.8,2.5536]
[1760156768409,0.4533,3812.0,3811.3,2.62373848]
[1760156768579,0.4533,3812.0,3811.0,2.5536]
[1760156768780,0.4533,3812.0,3811.0,0.6336]
[1760156768979,0.4533,3812.0,3811.1,2.62385157]
[1760156769205,0.4533,3812.0,3810.8,0.6336]
[1760156769483,0.4533,3812.0,3811.2,1.92]
[1760156769823,0.4533,3811.9,3810.5,1.92]
[1760156770002,0.2272,3812.2,3809.8,2.9248495]
[1760156770003,2.62376543,3811.4,3810.0,1.92]
[1760156770182,3.07713753,3811.3,3809.5,1.92]
[1760156770377,3.07713753,3811.3,3810.4,0.002]
[1760156770378,0.4533,3811.3,3810.4,0.002]
[1760156770807,0.2272,3812.2,3810.4,0.002]
[1760156770996,0.4533,3811.9,3810.4,0.002]
[1760156771198,0.2272,3812.2,3810.6,1.92]
[1760156771397,0.2272,3812.2,3810.9,0.6336]
[1760156771598,0.2272,3812.2,3811.4,2.62370451]
[1760156771916,0.2272,3812.2,3811.1,2.5536]
[1760156772216,0.4533,3812.1,3810.4,0.002]
[1760156772382,0.4533,3812.1,3810.7,0.6336]
[1760156772578,2.622986,3812.5,3811.4,2.62365098]
[1760156772888,2.62315846,3812.2,3811.3,0.6336]
[1760156773088,0.41146775,3812.7,3811.0,0.6336]
[1760156773417,0.4533,3812.1,3811.2,1.92]
[1760156773622,2.62329485,3812.0,3811.1,1.92]
[1760156773819,0.2272,3811.9,3810.7,2.62417766]
[1760156774126,2.62359544,3811.6,3810.8,0.6336]
[1760156774325,3.07679353,3811.8,3811.0,0.6336]
[1760156774626,0.4533,3811.8,3810.8,2.5536]
[1760156774829,0.4533,3812.3,3811.4,2.62365091]
[1760156775131,0.4533,3812.3,3811.3,0.6336]
[1760156775304,2.62323627,3812.1,3811.3,0.6336]
[1760156775627,2.6234917,3811.8,3810.7,2.5536]
[1760156775848,2.85860692,3811.7,3810.8,3.25769263]
[1760156776148,0.2351,3812.2,3811.3,2.6237164]
[1760156776439,0.2351,3812.2,3811.3,2.62371985]
[1760156776731,1.92,3812.9,3811.3,2.62371985]
[1760156776732,0.461,3812.9,3811.4,3.25730782]
[1760156777039,0.461,3813.4,3812.4,0.6336]
[1760156777416,0.461,3813.4,3812.6,2.62282453]
[1760156777619,0.461,3813.4,3812.3,0.6336]
[1760156777915,0.2272,3814.0,3812.3,0.6336]
[1760156778113,0.6882,3814.0,3812.3,0.6336]
[1760156778314,2.62227977,3813.5,3812.7,0.6336]
[1760156778506,3.08327977,3813.5,3812.6,2.62285395]
[1760156778734,0.461,3813.5,3812.8,0.6336]
[1760156778904,0.6882,3814.0,3812.8,0.6336]
[1760156779107,0.6882,3814.0,3812.6,0.6336]
[1760156779327,0.461,3814.5,3813.4,1.92]
[1760156779640,0.461,3814.5,3812.8,0.6336]
[1760156779834,3.08260992,3814.5,3813.5,1.92]
[1760156780128,2.62164771,3814.4,3813.5,1.92]
[1760156780303,2.62179552,3814.2,3813.4,1.92]
[1760156780731,0.461,3814.1,3813.1,1.92]
[1760156780901,2.33116709,3815.1,3812.0,0.1137]
[1760156780902,0.461,3814.0,3812.0,0.1137]
[1760156781100,2.62233245,3813.4,3812.5,2.62289412]
[1760156781409,0.2351,3813.9,3812.5,1.92]
[1760156781410,0.461,3813.3,3812.5,1.92]
[1760156781616,0.2351,3813.9,3812.6,0.6336]
[1760156781802,0.6961,3813.9,3813.1,2.62253196]
[1760156782148,0.6961,3813.9,3812.7,0.6336]
[1760156782149,2.62220657,3813.6,3812.7,0.6336]
[1760156782322,3.31809242,3813.9,3812.0,2.73699004]
[1760156782323,2.62213938,3813.7,3812.8,2.62268763]
[1760156782518,2.62213938,3813.7,3812.9,0.6336]
[1760156782718,2.62225026,3813.6,3812.7,0.6336]
[1760156782914,3.31809804,3813.9,3813.0,2.62256984]
[1760156783234,0.41125541,3814.1,3812.7,0.3001]
[1760156783439,2.62088292,3815.6,3812.7,0.3001]
[1760156783440,2.62085128,3815.6,3813.0,0.6336]
[1760156783609,0.461,3814.3,3812.5,1.92]
[1760156783811,0.87223124,3814.2,3812.6,3.25647929]
[1760156784133,0.87223124,3814.2,3811.7,2.62349457]
[1760156784134,0.461,3814.1,3811.7,1.92]